[Event "*** SCC Grand Prix: Titled Tuesday Blitz"]
[Site "Chess.com"]
[Date "2020.07.07"]
[Round "2"]
[White "SzMM19"]
[Black "RaunakSadhwani2005"]
[Result "0-1"]
[WhiteElo "2572"]
[BlackElo "2922"]
[TimeControl "180+1"]
[EndTime "10:18:30 PDT"]
[Termination "RaunakSadhwani2005 won by resignation"]

1. e4 {[%clk 0:02:57.6]} 1... c6 {[%clk 0:02:58.5]} 2. Nc3 {[%clk 0:02:57.5]}
2... d5 {[%clk 0:02:57.9]} 3. Nf3 {[%clk 0:02:58.4]} 3... g6 {[%clk 0:02:58.2]}
4. d4 {[%clk 0:02:58.1]} 4... Bg7 {[%clk 0:02:58.5]} 5. h3 {[%clk 0:02:58.1]}
5... dxe4 {[%clk 0:02:58.8]} 6. Nxe4 {[%clk 0:02:58]} 6... Nf6 {[%clk
0:02:59.7]} 7. Nxf6+ {[%clk 0:02:55.9]} 7... exf6 {[%clk 0:03:00.6]} 8. Bd3
{[%clk 0:02:53.3]} 8... O-O {[%clk 0:03:00.4]} 9. O-O {[%clk 0:02:53.4]} 9...
Re8 {[%clk 0:02:57.8]} 10. c3 {[%clk 0:02:52.7]} 10... Nd7 {[%clk 0:02:58]} 11.
Re1 {[%clk 0:02:52.1]} 11... Nf8 {[%clk 0:02:58.3]} 12. Bd2 {[%clk 0:02:48.4]}
12... Be6 {[%clk 0:02:58.2]} 13. a4 {[%clk 0:02:46.4]} 13... a5 {[%clk
0:02:56.8]} 14. c4 {[%clk 0:02:42.3]} 14... g5 {[%clk 0:02:48.9]} 15. Bc3 {[%clk
0:02:36.3]} 15... Ng6 {[%clk 0:02:48]} 16. Qd2 {[%clk 0:02:23.6]} 16... Qd7
{[%clk 0:02:42.2]} 17. Bf1 {[%clk 0:02:21.4]} 17... h5 {[%clk 0:02:37.4]} 18.
Rad1 {[%clk 0:02:02.1]} 18... Bf5 {[%clk 0:02:06.6]} 19. d5 {[%clk 0:01:50.8]}
19... c5 {[%clk 0:02:06.7]} 20. Bd3 {[%clk 0:01:46.7]} 20... g4 {[%clk 0:01:37]}
21. hxg4 {[%clk 0:01:46.5]} 21... hxg4 {[%clk 0:01:32.8]} 22. Nh2 {[%clk
0:01:46.4]} 22... Bxd3 {[%clk 0:01:07.3]} 23. Qxd3 {[%clk 0:01:46.4]} 23... Nf4
{[%clk 0:01:07]} 24. Qd2 {[%clk 0:01:37.6]} 24... Bh6 {[%clk 0:00:55.6]} 25. Qc2
{[%clk 0:01:37.5]} 25... Bg5 {[%clk 0:00:46.4]} 26. Nf1 {[%clk 0:01:16.2]} 26...
Nh5 {[%clk 0:00:45.1]} 27. b3 {[%clk 0:01:08.3]} 27... b6 {[%clk 0:00:41.2]} 28.
Qd3 {[%clk 0:01:01.9]} 28... Nf4 {[%clk 0:00:30.4]} 29. Qc2 {[%clk 0:00:54.5]}
29... Nh5 {[%clk 0:00:27.1]} 30. Qd3 {[%clk 0:00:54.6]} 30... Kg7 {[%clk
0:00:24.7]} 31. Ng3 {[%clk 0:00:46.9]} 31... Nxg3 {[%clk 0:00:25.1]} 32. Qxg3
{[%clk 0:00:47.8]} 32... Qf5 {[%clk 0:00:23.9]} 33. d6 {[%clk 0:00:22]} 33...
Bf4 {[%clk 0:00:24]} 34. Qd3 {[%clk 0:00:21.2]} 34... Rxe1+ {[%clk 0:00:23.4]}
35. Bxe1 {[%clk 0:00:22.1]} 35... Qh5 {[%clk 0:00:16.9]} 36. g3 {[%clk
0:00:18.3]} 36... Rh8 {[%clk 0:00:16.5]} 37. Kf1 {[%clk 0:00:08.2]} 37... Qh1+
{[%clk 0:00:15.4]} 38. Ke2 {[%clk 0:00:07.6]} 38... Re8+ {[%clk 0:00:15.9]} 0-1

[Event "*** SCC Grand Prix: Titled Tuesday Blitz"]
[Site "Chess.com"]
[Date "2020.07.07"]
[Round "2"]
[White "DrVelja"]
[Black "TigranMukhutdinov"]
[Result "1-0"]
[WhiteElo "2806"]
[BlackElo "2529"]
[TimeControl "180+1"]
[EndTime "10:18:30 PDT"]
[Termination "DrVelja won by resignation"]

1. e4 {[%clk 0:03:00.9]} 1... c5 {[%clk 0:02:59.8]} 2. Nf3 {[%clk 0:02:59.3]}
2... Nc6 {[%clk 0:03:00]} 3. d4 {[%clk 0:02:57.8]} 3... cxd4 {[%clk 0:03:00.9]}
4. Nxd4 {[%clk 0:02:58.4]} 4... e5 {[%clk 0:03:00.8]} 5. Nb5 {[%clk 0:02:58]}
5... d6 {[%clk 0:03:01.3]} 6. c4 {[%clk 0:02:58.6]} 6... Be7 {[%clk 0:03:00.7]}
7. Be2 {[%clk 0:02:58.7]} 7... Nf6 {[%clk 0:02:59.7]} 8. N1c3 {[%clk 0:02:58.6]}
8... a6 {[%clk 0:02:59.4]} 9. Na3 {[%clk 0:02:59]} 9... O-O {[%clk 0:03:00]} 10.
O-O {[%clk 0:02:59.2]} 10... Be6 {[%clk 0:03:00.2]} 11. Be3 {[%clk 0:02:59.6]}
11... Rc8 {[%clk 0:03:00]} 12. Qd2 {[%clk 0:02:59.4]} 12... Nd7 {[%clk
0:02:59.9]} 13. Nc2 {[%clk 0:02:49.8]} 13... f5 {[%clk 0:02:54.6]} 14. exf5
{[%clk 0:02:46]} 14... Bxf5 {[%clk 0:02:55.5]} 15. Bd3 {[%clk 0:02:44.9]} 15...
Be6 {[%clk 0:02:49.2]} 16. b3 {[%clk 0:02:41.9]} 16... Nf6 {[%clk 0:02:33.2]}
17. f3 {[%clk 0:02:40.3]} 17... Nh5 {[%clk 0:02:31.3]} 18. Nd5 {[%clk
0:02:26.1]} 18... Bxd5 {[%clk 0:02:20.6]} 19. cxd5 {[%clk 0:02:27]} 19... Nb8
{[%clk 0:02:21]} 20. g3 {[%clk 0:02:06.9]} 20... Nd7 {[%clk 0:02:20.6]} 21. Rac1
{[%clk 0:02:04.4]} 21... Nc5 {[%clk 0:02:19.8]} 22. Be2 {[%clk 0:01:48.5]} 22...
Nf6 {[%clk 0:02:11.3]} 23. Rfd1 {[%clk 0:01:32]} 23... h6 {[%clk 0:02:02.6]} 24.
Na3 {[%clk 0:01:18.6]} 24... Nh7 {[%clk 0:02:00.8]} 25. b4 {[%clk 0:01:11.3]}
25... Nd7 {[%clk 0:01:53.9]} 26. Rxc8 {[%clk 0:01:02.3]} 26... Qxc8 {[%clk
0:01:54.8]} 27. Rc1 {[%clk 0:01:00.6]} 27... Qd8 {[%clk 0:01:55]} 28. Nc4 {[%clk
0:00:55.7]} 28... b5 {[%clk 0:01:32.1]} 29. Na5 {[%clk 0:00:55]} 29... Bg5
{[%clk 0:01:32.6]} 30. Rc6 {[%clk 0:00:48]} 30... Bxe3+ {[%clk 0:01:28.2]} 31.
Qxe3 {[%clk 0:00:48.9]} 31... Nb8 {[%clk 0:01:27.9]} 32. Rc1 {[%clk 0:00:39.2]}
32... Nf6 {[%clk 0:01:27.8]} 33. Qb3 {[%clk 0:00:24.1]} 33... Qd7 {[%clk
0:01:22.6]} 34. Nc6 {[%clk 0:00:22.8]} 34... Qf7 {[%clk 0:01:12.1]} 35. Nxb8
{[%clk 0:00:19.4]} 35... Rxb8 {[%clk 0:01:13]} 36. Rc6 {[%clk 0:00:20]} 36...
Qxd5 {[%clk 0:01:11]} 37. Rxd6 {[%clk 0:00:14.5]} 37... Qxb3 {[%clk 0:00:56.2]}
38. axb3 {[%clk 0:00:15.4]} 38... e4 {[%clk 0:00:56.7]} 39. Rxa6 {[%clk
0:00:14.4]} 39... exf3 {[%clk 0:00:53.6]} 40. Bxf3 {[%clk 0:00:15.3]} 40... Rd8
{[%clk 0:00:53.8]} 41. Be2 {[%clk 0:00:15.3]} 41... Rd4 {[%clk 0:00:51.4]} 42.
Bxb5 {[%clk 0:00:15.6]} 42... Rxb4 {[%clk 0:00:51.6]} 43. Bc4+ {[%clk
0:00:16.1]} 43... Kh7 {[%clk 0:00:52.1]} 44. Ra5 {[%clk 0:00:16.5]} 44... Ne4
{[%clk 0:00:49.6]} 45. Rb5 {[%clk 0:00:15.2]} 45... Rxb5 {[%clk 0:00:47.4]} 46.
Bxb5 {[%clk 0:00:16.1]} 46... Nd2 {[%clk 0:00:43.3]} 47. Bd3+ {[%clk 0:00:14.8]}
47... Kg8 {[%clk 0:00:42.9]} 48. b4 {[%clk 0:00:15.7]} 48... Kf7 {[%clk
0:00:42.1]} 49. Kf2 {[%clk 0:00:16.2]} 49... Ke6 {[%clk 0:00:41.1]} 50. Ke3
{[%clk 0:00:15.6]} 1-0

[Event "*** SCC Grand Prix: Titled Tuesday Blitz"]
[Site "Chess.com"]
[Date "2020.07.07"]
[Round "2"]
[White "r31415"]
[Black "icychess54"]
[Result "0-1"]
[WhiteElo "2438"]
[BlackElo "2256"]
[TimeControl "180+1"]
[EndTime "10:18:31 PDT"]
[Termination "icychess54 won by resignation"]

1. c4 {[%clk 0:03:00.9]} 1... c6 {[%clk 0:02:57.9]} 2. d4 {[%clk 0:03:00]} 2...
d5 {[%clk 0:02:58.8]} 3. Nf3 {[%clk 0:03:00.3]} 3... Nf6 {[%clk 0:02:57.6]} 4.
Nc3 {[%clk 0:03:00.8]} 4... e6 {[%clk 0:02:55.2]} 5. e3 {[%clk 0:02:59.7]} 5...
Nbd7 {[%clk 0:02:55.5]} 6. Qc2 {[%clk 0:02:58.8]} 6... Be7 {[%clk 0:02:56.1]} 7.
b3 {[%clk 0:02:58.2]} 7... O-O {[%clk 0:02:54.8]} 8. Bb2 {[%clk 0:02:57.5]} 8...
b6 {[%clk 0:02:54.6]} 9. Bd3 {[%clk 0:02:57.2]} 9... Bb7 {[%clk 0:02:54.3]} 10.
O-O {[%clk 0:02:56.5]} 10... Rc8 {[%clk 0:02:50.7]} 11. Rac1 {[%clk 0:02:55.5]}
11... c5 {[%clk 0:02:49.2]} 12. Qb1 {[%clk 0:02:51]} 12... dxc4 {[%clk
0:02:39.5]} 13. Bxc4 {[%clk 0:02:48.5]} 13... Bxf3 {[%clk 0:02:39.2]} 14. gxf3
{[%clk 0:02:48.9]} 14... cxd4 {[%clk 0:02:39.2]} 15. Nb5 {[%clk 0:02:41.3]}
15... dxe3 {[%clk 0:02:32]} 16. fxe3 {[%clk 0:02:42.2]} 16... Bc5 {[%clk
0:02:21.4]} 17. Rfe1 {[%clk 0:02:32.2]} 17... Nh5 {[%clk 0:02:13.4]} 18. Qe4
{[%clk 0:02:21.7]} 18... Qg5+ {[%clk 0:01:53.8]} 19. Kh1 {[%clk 0:02:21.4]}
19... Ndf6 {[%clk 0:01:47.1]} 20. Qe5 {[%clk 0:02:11.6]} 20... Qh6 {[%clk
0:01:19.5]} 21. Nxa7 {[%clk 0:01:59.8]} 21... Rcd8 {[%clk 0:01:17.4]} 22. Rc2
{[%clk 0:01:59]} 22... Bd6 {[%clk 0:01:07.7]} 23. Qc3 {[%clk 0:01:53.6]} 23...
Ng3+ {[%clk 0:01:03.5]} 24. Kg2 {[%clk 0:01:52.9]} 24... Nf5 {[%clk 0:01:01.9]}
25. Kg1 {[%clk 0:01:48.1]} 25... Qh3 {[%clk 0:00:55.4]} 26. Rg2 {[%clk
0:01:44.5]} 26... Kh8 {[%clk 0:00:39.5]} 27. Qxf6 {[%clk 0:01:31.6]} 27... Qxg2+
{[%clk 0:00:38.9]} 28. Kxg2 {[%clk 0:01:30.7]} 28... gxf6 {[%clk 0:00:39.2]} 29.
Bxf6+ {[%clk 0:01:31.4]} 29... Kg8 {[%clk 0:00:38.1]} 30. Kf2 {[%clk 0:01:23.2]}
30... Rfe8 {[%clk 0:00:31.2]} 31. Bxd8 {[%clk 0:01:12.9]} 31... Rxd8 {[%clk
0:00:32.1]} 32. Nc6 {[%clk 0:00:57.6]} 32... Rd7 {[%clk 0:00:28.4]} 33. Kg1
{[%clk 0:00:50.8]} 33... Bc5 {[%clk 0:00:27.2]} 34. Kf2 {[%clk 0:00:45.3]} 34...
Rd2+ {[%clk 0:00:25.2]} 35. Re2 {[%clk 0:00:45.7]} 35... Bxe3+ {[%clk
0:00:25.3]} 36. Ke1 {[%clk 0:00:46.1]} 36... Rd6 {[%clk 0:00:21.8]} 37. Ne5
{[%clk 0:00:43.1]} 37... Bf4 {[%clk 0:00:20.8]} 38. Nd3 {[%clk 0:00:41.9]} 38...
Bh6 {[%clk 0:00:19.5]} 39. Kf2 {[%clk 0:00:32.2]} 39... Nd4 {[%clk 0:00:19]} 40.
Re1 {[%clk 0:00:32.7]} 40... b5 {[%clk 0:00:19.1]} 41. Bxe6 {[%clk 0:00:16.7]}
41... Nxe6 {[%clk 0:00:18.2]} 42. Rg1+ {[%clk 0:00:17.6]} 42... Kf8 {[%clk
0:00:17.8]} 43. Ne5 {[%clk 0:00:17.7]} 43... Rd2+ {[%clk 0:00:17.6]} 44. Ke1
{[%clk 0:00:17.7]} 44... Rxa2 {[%clk 0:00:16.5]} 45. h4 {[%clk 0:00:17]} 45...
Ra1+ {[%clk 0:00:16]} 46. Kf2 {[%clk 0:00:17.7]} 46... Be3+ {[%clk 0:00:15.7]}
47. Kxe3 {[%clk 0:00:18.2]} 47... Rxg1 {[%clk 0:00:15.6]} 0-1

[Event "*** SCC Grand Prix: Titled Tuesday Blitz"]
[Site "Chess.com"]
[Date "2020.07.07"]
[Round "2"]
[White "ChronicUnhappiness"]
[Black "Morshynska"]
[Result "1-0"]
[WhiteElo "2426"]
[BlackElo "2179"]
[TimeControl "180+1"]
[EndTime "10:18:33 PDT"]
[Termination "ChronicUnhappiness won on time"]

1. c4 {[%clk 0:03:00.9]} 1... Nf6 {[%clk 0:02:56.8]} 2. Nc3 {[%clk 0:03:00.9]}
2... c5 {[%clk 0:02:56.1]} 3. Nf3 {[%clk 0:02:59.9]} 3... Nc6 {[%clk 0:02:55.5]}
4. e3 {[%clk 0:02:58.7]} 4... e6 {[%clk 0:02:54.4]} 5. d4 {[%clk 0:02:58.6]}
5... cxd4 {[%clk 0:02:51.4]} 6. exd4 {[%clk 0:02:58.3]} 6... d5 {[%clk
0:02:51.1]} 7. a3 {[%clk 0:02:58.1]} 7... Be7 {[%clk 0:02:39.9]} 8. c5 {[%clk
0:02:57.3]} 8... Ne4 {[%clk 0:02:39.4]} 9. Bd3 {[%clk 0:02:55.3]} 9... f5 {[%clk
0:02:37.9]} 10. O-O {[%clk 0:02:42.8]} 10... O-O {[%clk 0:02:36.2]} 11. Qc2
{[%clk 0:02:29.7]} 11... Bf6 {[%clk 0:02:24.9]} 12. Ne2 {[%clk 0:02:27.5]} 12...
g5 {[%clk 0:02:19.5]} 13. Rd1 {[%clk 0:01:47.1]} 13... g4 {[%clk 0:02:09]} 14.
Bxe4 {[%clk 0:01:44.2]} 14... fxe4 {[%clk 0:01:57.5]} 15. Ne1 {[%clk 0:01:29]}
15... Qe7 {[%clk 0:01:39.1]} 16. Be3 {[%clk 0:01:27.8]} 16... Bd7 {[%clk
0:01:00.6]} 17. g3 {[%clk 0:01:12.6]} 17... Be8 {[%clk 0:00:49.9]} 18. Ng2
{[%clk 0:01:12]} 18... h5 {[%clk 0:00:40.6]} 19. Ngf4 {[%clk 0:01:11.6]} 19...
h4 {[%clk 0:00:39.6]} 20. b4 {[%clk 0:01:04.8]} 20... Qf7 {[%clk 0:00:32.5]} 21.
b5 {[%clk 0:01:01.9]} 21... Ne7 {[%clk 0:00:31.9]} 22. Rac1 {[%clk 0:00:48]}
22... Bxb5 {[%clk 0:00:28.6]} 23. Rb1 {[%clk 0:00:48.4]} 23... Ba6 {[%clk
0:00:26.4]} 24. Nc3 {[%clk 0:00:45.5]} 24... Nf5 {[%clk 0:00:25.1]} 25. Nb5
{[%clk 0:00:44.3]} 25... Kh7 {[%clk 0:00:17.2]} 26. Nd6 {[%clk 0:00:42.4]} 26...
Qe7 {[%clk 0:00:15]} 27. Nxf5 {[%clk 0:00:40.9]} 27... exf5 {[%clk 0:00:14.4]}
28. Nxd5 {[%clk 0:00:40]} 28... Qd7 {[%clk 0:00:09.2]} 29. Nf4 {[%clk
0:00:39.2]} 29... h3 {[%clk 0:00:07.5]} 30. d5 {[%clk 0:00:38]} 30... Be5 {[%clk
0:00:07.3]} 31. c6 {[%clk 0:00:35.6]} 31... Qf7 {[%clk 0:00:03.9]} 32. cxb7
{[%clk 0:00:29.8]} 32... Bxb7 {[%clk 0:00:04.8]} 33. d6 {[%clk 0:00:22.1]} 33...
Rac8 {[%clk 0:00:03.7]} 34. Qb3 {[%clk 0:00:21.6]} 34... Ba8 {[%clk 0:00:02.9]}
35. Qxf7+ {[%clk 0:00:20.4]} 35... Rxf7 {[%clk 0:00:03.8]} 36. d7 {[%clk
0:00:16.7]} 36... Rd8 {[%clk 0:00:03.3]} 37. Ne6 {[%clk 0:00:17.6]} 1-0

[Event "*** SCC Grand Prix: Titled Tuesday Blitz"]
[Site "Chess.com"]
[Date "2020.07.07"]
[Round "2"]
[White "chegueps"]
[Black "Klavdia_Nik"]
[Result "1-0"]
[WhiteElo "2393"]
[BlackElo "2077"]
[TimeControl "180+1"]
[EndTime "10:18:33 PDT"]
[Termination "chegueps won on time"]

1. d4 {[%clk 0:03:00.9]} 1... Nf6 {[%clk 0:02:53.6]} 2. Nf3 {[%clk 0:03:00.6]}
2... c5 {[%clk 0:02:42.2]} 3. e3 {[%clk 0:02:59.4]} 3... b6 {[%clk 0:02:37.5]}
4. Bd3 {[%clk 0:02:57.3]} 4... Bb7 {[%clk 0:02:27.4]} 5. O-O {[%clk 0:02:46.9]}
5... g6 {[%clk 0:02:24.8]} 6. c4 {[%clk 0:02:43.4]} 6... Bg7 {[%clk 0:02:24.6]}
7. d5 {[%clk 0:02:43.2]} 7... b5 {[%clk 0:02:16]} 8. Nc3 {[%clk 0:02:39.1]} 8...
bxc4 {[%clk 0:02:14.5]} 9. Bxc4 {[%clk 0:02:40]} 9... d6 {[%clk 0:02:14.1]} 10.
e4 {[%clk 0:02:38.7]} 10... O-O {[%clk 0:02:14.6]} 11. h3 {[%clk 0:02:38.5]}
11... Nfd7 {[%clk 0:02:05.8]} 12. a4 {[%clk 0:02:36]} 12... Ne5 {[%clk
0:02:00.5]} 13. Nxe5 {[%clk 0:02:35.5]} 13... Bxe5 {[%clk 0:01:59.6]} 14. Bh6
{[%clk 0:02:32.6]} 14... Re8 {[%clk 0:01:53.1]} 15. f4 {[%clk 0:02:32.4]} 15...
Bh8 {[%clk 0:01:50.6]} 16. e5 {[%clk 0:02:23.6]} 16... Ba6 {[%clk 0:01:40.2]}
17. Nb5 {[%clk 0:02:19]} 17... Bc8 {[%clk 0:01:18.6]} 18. e6 {[%clk 0:01:21.5]}
18... Bxb2 {[%clk 0:00:45.8]} 19. f5 {[%clk 0:01:16]} 19... Bf6 {[%clk
0:00:14.9]} 20. g4 {[%clk 0:00:35.5]} 20... a6 {[%clk 0:00:10.8]} 21. g5 {[%clk
0:00:35.7]} 21... Bg7 {[%clk 0:00:08.8]} 22. Bxg7 {[%clk 0:00:34.2]} 22... Kxg7
{[%clk 0:00:08.5]} 23. f6+ {[%clk 0:00:35.1]} 23... Kh8 {[%clk 0:00:06.3]} 24.
exf7 {[%clk 0:00:12.3]} 24... Rf8 {[%clk 0:00:05.6]} 25. fxe7 {[%clk 0:00:07]}
25... Qxe7 {[%clk 0:00:06]} 26. Qf3 {[%clk 0:00:07.7]} 26... axb5 {[%clk
0:00:04.3]} 27. Bxb5 {[%clk 0:00:04.2]} 27... Bf5 {[%clk 0:00:02.5]} 28. Rae1
{[%clk 0:00:02.1]} 28... Qxf7 {[%clk 0:00:02.8]} 29. Qc3+ {[%clk 0:00:01.7]}
29... Qg7 {[%clk 0:00:02.2]} 30. Qb3 {[%clk 0:00:01.5]} 30... Nd7 {[%clk
0:00:01.3]} 31. Bxd7 {[%clk 0:00:01.3]} 1-0

[Event "*** SCC Grand Prix: Titled Tuesday Blitz"]
[Site "Chess.com"]
[Date "2020.07.07"]
[Round "2"]
[White "Federtiu"]
[Black "KuzubovYuriy"]
[Result "1-0"]
[WhiteElo "2572"]
[BlackElo "2843"]
[TimeControl "180+1"]
[EndTime "10:18:35 PDT"]
[Termination "Federtiu won on time"]

1. e4 {[%clk 0:03:00]} 1... e6 {[%clk 0:02:52]} 2. d4 {[%clk 0:02:56]} 2... d5
{[%clk 0:02:51.4]} 3. Nc3 {[%clk 0:02:56.6]} 3... Nc6 {[%clk 0:02:51]} 4. Nf3
{[%clk 0:02:44.2]} 4... Nf6 {[%clk 0:02:49]} 5. e5 {[%clk 0:02:40.4]} 5... Nd7
{[%clk 0:02:37.8]} 6. Bd3 {[%clk 0:02:40.5]} 6... Nb4 {[%clk 0:02:29.9]} 7. Bg5
{[%clk 0:02:14.7]} 7... Be7 {[%clk 0:01:48.1]} 8. h4 {[%clk 0:02:13.3]} 8...
Nxd3+ {[%clk 0:01:41.6]} 9. Qxd3 {[%clk 0:02:10.8]} 9... a6 {[%clk 0:01:31.1]}
10. O-O-O {[%clk 0:02:09.1]} 10... b6 {[%clk 0:01:26.3]} 11. Qe3 {[%clk
0:01:56.5]} 11... Bb7 {[%clk 0:01:23.2]} 12. h5 {[%clk 0:01:50.7]} 12... h6
{[%clk 0:01:22.5]} 13. Bf4 {[%clk 0:01:36.9]} 13... c5 {[%clk 0:00:53.3]} 14. g4
{[%clk 0:01:35]} 14... Qc7 {[%clk 0:00:50.9]} 15. g5 {[%clk 0:01:19.7]} 15...
cxd4 {[%clk 0:00:49.8]} 16. Rxd4 {[%clk 0:01:18]} 16... hxg5 {[%clk 0:00:41.1]}
17. Bxg5 {[%clk 0:01:13.9]} 17... Bc5 {[%clk 0:00:40.3]} 18. Ne2 {[%clk
0:01:12.2]} 18... Nb8 {[%clk 0:00:27.4]} 19. Qf4 {[%clk 0:01:07.2]} 19... Bxd4
{[%clk 0:00:26.4]} 20. Nexd4 {[%clk 0:01:08.1]} 20... Nc6 {[%clk 0:00:25.6]} 21.
h6 {[%clk 0:00:39.9]} 21... gxh6 {[%clk 0:00:22.2]} 22. Qf6 {[%clk 0:00:34.6]}
22... Rg8 {[%clk 0:00:17.4]} 23. Nxe6 {[%clk 0:00:28.9]} 23... fxe6 {[%clk
0:00:11.6]} 24. Qxe6+ {[%clk 0:00:28.7]} 24... Ne7 {[%clk 0:00:11]} 25. Bxe7
{[%clk 0:00:28]} 25... Qxe7 {[%clk 0:00:10.4]} 26. Qxg8+ {[%clk 0:00:27.7]}
26... Kd7 {[%clk 0:00:10.6]} 27. Qg6 {[%clk 0:00:23.9]} 27... Rf8 {[%clk
0:00:09.2]} 28. Qxb6 {[%clk 0:00:21]} 28... Kc8 {[%clk 0:00:07.4]} 29. Nd4
{[%clk 0:00:13.7]} 29... Rxf2 {[%clk 0:00:05.8]} 30. b3 {[%clk 0:00:08.9]} 30...
Qxe5 {[%clk 0:00:04]} 31. Rxh6 {[%clk 0:00:09.3]} 31... Rf1+ {[%clk 0:00:02.5]}
32. Kb2 {[%clk 0:00:09.5]} 32... Rf4 {[%clk 0:00:02.2]} 33. c3 {[%clk
0:00:05.1]} 33... Rf2+ {[%clk 0:00:02]} 34. Ka3 {[%clk 0:00:05.7]} 34... Qe7+
{[%clk 0:00:01.6]} 35. b4 {[%clk 0:00:06.1]} 1-0

[Event "*** SCC Grand Prix: Titled Tuesday Blitz"]
[Site "Chess.com"]
[Date "2020.07.07"]
[Round "2"]
[White "mbachez"]
[Black "GuuBol"]
[Result "0-1"]
[WhiteElo "2440"]
[BlackElo "2262"]
[TimeControl "180+1"]
[EndTime "10:18:37 PDT"]
[Termination "GuuBol won by resignation"]

1. e4 {[%clk 0:03:00.9]} 1... c5 {[%clk 0:02:59.8]} 2. Nf3 {[%clk 0:03:00.8]}
2... d6 {[%clk 0:02:59.8]} 3. c3 {[%clk 0:02:58.2]} 3... Nf6 {[%clk 0:02:57.3]}
4. Bd3 {[%clk 0:02:58]} 4... e5 {[%clk 0:02:54.2]} 5. Bc2 {[%clk 0:02:57.5]}
5... g6 {[%clk 0:02:54.2]} 6. O-O {[%clk 0:02:57.3]} 6... Bg7 {[%clk 0:02:54.2]}
7. d4 {[%clk 0:02:57.4]} 7... Nbd7 {[%clk 0:02:42.5]} 8. Na3 {[%clk 0:02:51.8]}
8... O-O {[%clk 0:02:34]} 9. Nc4 {[%clk 0:02:50.5]} 9... Qe7 {[%clk 0:02:33.2]}
10. a4 {[%clk 0:02:40.5]} 10... cxd4 {[%clk 0:02:16.4]} 11. cxd4 {[%clk
0:02:38.6]} 11... exd4 {[%clk 0:02:16]} 12. Re1 {[%clk 0:02:35.2]} 12... Ne5
{[%clk 0:02:13.8]} 13. Qe2 {[%clk 0:02:08.2]} 13... Bg4 {[%clk 0:02:10.6]} 14.
b3 {[%clk 0:01:52.8]} 14... Rac8 {[%clk 0:01:54.1]} 15. Ncxe5 {[%clk 0:01:49.2]}
15... dxe5 {[%clk 0:01:53.5]} 16. Ba3 {[%clk 0:01:49.2]} 16... Qc7 {[%clk
0:01:38.7]} 17. Bxf8 {[%clk 0:01:46.7]} 17... Kxf8 {[%clk 0:01:35.1]} 18. Bd3
{[%clk 0:01:46.6]} 18... Nh5 {[%clk 0:01:31.2]} 19. h3 {[%clk 0:01:23.5]} 19...
Nf4 {[%clk 0:01:30.8]} 20. Qd1 {[%clk 0:01:22.9]} 20... Be6 {[%clk 0:01:05.1]}
21. Bf1 {[%clk 0:01:07.9]} 21... Bh6 {[%clk 0:00:59.3]} 22. Nd2 {[%clk
0:00:56.3]} 22... Qc3 {[%clk 0:00:48.9]} 23. Nc4 {[%clk 0:00:55.7]} 23... Nh5
{[%clk 0:00:40]} 24. Ra2 {[%clk 0:00:49.7]} 24... f6 {[%clk 0:00:38.3]} 25. Ree2
{[%clk 0:00:16.4]} 25... d3 {[%clk 0:00:33.3]} 26. Re1 {[%clk 0:00:15.7]} 26...
Rd8 {[%clk 0:00:33.3]} 27. Ne3 {[%clk 0:00:13]} 27... d2 {[%clk 0:00:29.1]} 28.
Re2 {[%clk 0:00:11.4]} 28... Bxb3 {[%clk 0:00:29.3]} 29. Raxd2 {[%clk
0:00:08.9]} 29... Bxd1 {[%clk 0:00:27]} 30. Rxd8+ {[%clk 0:00:08.7]} 30... Ke7
{[%clk 0:00:27.4]} 31. Nd5+ {[%clk 0:00:08]} 31... Kxd8 {[%clk 0:00:27.3]} 32.
Nxc3 {[%clk 0:00:08.2]} 32... Bxe2 {[%clk 0:00:27.8]} 33. Bxe2 {[%clk
0:00:08.9]} 33... Nf4 {[%clk 0:00:27.5]} 34. Bc4 {[%clk 0:00:09]} 34... Bf8
{[%clk 0:00:27.1]} 35. Bg8 {[%clk 0:00:08.6]} 35... h5 {[%clk 0:00:26.5]} 36.
Kh2 {[%clk 0:00:08.7]} 36... Nd3 {[%clk 0:00:26.3]} 37. Kg1 {[%clk 0:00:08.3]}
37... Nc5 {[%clk 0:00:26.6]} 38. Kf1 {[%clk 0:00:07.1]} 38... Ke7 {[%clk
0:00:26]} 39. Bh7 {[%clk 0:00:06.5]} 39... Kf7 {[%clk 0:00:25.7]} 40. g4 {[%clk
0:00:05.2]} 40... Kg7 {[%clk 0:00:25.3]} 41. gxh5 {[%clk 0:00:05]} 41... Kxh7
{[%clk 0:00:25.1]} 42. hxg6+ {[%clk 0:00:05.9]} 42... Kxg6 {[%clk 0:00:26]} 43.
Nd5 {[%clk 0:00:06.8]} 43... Nxe4 {[%clk 0:00:25.2]} 0-1

[Event "*** SCC Grand Prix: Titled Tuesday Blitz"]
[Site "Chess.com"]
[Date "2020.07.07"]
[Round "2"]
[White "ErikRonka"]
[Black "PauloFanha"]
[Result "1-0"]
[WhiteElo "2370"]
[BlackElo "1986"]
[TimeControl "180+1"]
[EndTime "10:18:37 PDT"]
[Termination "ErikRonka won on time"]

1. e4 {[%clk 0:03:00.9]} 1... d5 {[%clk 0:02:58]} 2. exd5 {[%clk 0:02:59.6]}
2... Qxd5 {[%clk 0:02:58.5]} 3. Nc3 {[%clk 0:02:58.8]} 3... Qd6 {[%clk
0:02:58.1]} 4. d4 {[%clk 0:02:58.5]} 4... Nf6 {[%clk 0:02:58.2]} 5. Nf3 {[%clk
0:02:58.4]} 5... c6 {[%clk 0:02:57.7]} 6. h3 {[%clk 0:02:56.1]} 6... Bf5 {[%clk
0:02:56.4]} 7. Ne5 {[%clk 0:02:54.4]} 7... Nbd7 {[%clk 0:02:54.2]} 8. Nc4 {[%clk
0:02:53.3]} 8... Qc7 {[%clk 0:02:50.7]} 9. Qf3 {[%clk 0:02:50.3]} 9... e6 {[%clk
0:02:43.8]} 10. Bf4 {[%clk 0:02:49.5]} 10... Qd8 {[%clk 0:02:39.3]} 11. O-O-O
{[%clk 0:02:37.9]} 11... Nb6 {[%clk 0:02:33.3]} 12. Ne3 {[%clk 0:02:24.4]} 12...
Bg6 {[%clk 0:02:19.5]} 13. g4 {[%clk 0:02:08]} 13... Bb4 {[%clk 0:02:09.4]} 14.
Nc4 {[%clk 0:01:58.1]} 14... Nxc4 {[%clk 0:01:50.7]} 15. Bxc4 {[%clk 0:01:56.8]}
15... Nd5 {[%clk 0:01:42.6]} 16. Nxd5 {[%clk 0:01:47.8]} 16... cxd5 {[%clk
0:01:38.7]} 17. Bb5+ {[%clk 0:01:47.4]} 17... Kf8 {[%clk 0:01:24.9]} 18. Qb3
{[%clk 0:01:42.3]} 18... Bd6 {[%clk 0:01:17]} 19. Be3 {[%clk 0:01:35.4]} 19...
Rc8 {[%clk 0:01:09.9]} 20. c3 {[%clk 0:01:30.2]} 20... h6 {[%clk 0:00:59.2]} 21.
Bd3 {[%clk 0:01:22.4]} 21... Bxd3 {[%clk 0:00:55.3]} 22. Rxd3 {[%clk 0:01:23.3]}
22... g5 {[%clk 0:00:49.5]} 23. Qxb7 {[%clk 0:01:12.4]} 23... Kg7 {[%clk
0:00:42.1]} 24. Rf1 {[%clk 0:01:05]} 24... Rb8 {[%clk 0:00:33.5]} 25. Qa6 {[%clk
0:01:02.2]} 25... Qc7 {[%clk 0:00:27]} 26. Rd2 {[%clk 0:00:51.7]} 26... Rb6
{[%clk 0:00:22.9]} 27. Qd3 {[%clk 0:00:50.9]} 27... Rhb8 {[%clk 0:00:17.4]} 28.
h4 {[%clk 0:00:50.6]} 28... gxh4 {[%clk 0:00:11.1]} 29. Kb1 {[%clk 0:00:30.5]}
29... Ba3 {[%clk 0:00:08.5]} 30. b3 {[%clk 0:00:29.9]} 30... Rxb3+ {[%clk
0:00:08.2]} 31. axb3 {[%clk 0:00:27.4]} 31... Rxb3+ {[%clk 0:00:08.4]} 32. Kc2
{[%clk 0:00:27.8]} 32... Rb2+ {[%clk 0:00:07]} 33. Kd1 {[%clk 0:00:27.6]} 33...
Qb6 {[%clk 0:00:05.6]} 34. Rxb2 {[%clk 0:00:26.7]} 34... Qxb2 {[%clk 0:00:05.6]}
35. Qc2 {[%clk 0:00:23.6]} 35... Qa1+ {[%clk 0:00:04.7]} 36. Ke2 {[%clk
0:00:22.7]} 36... Qb2 {[%clk 0:00:02.5]} 37. Qxb2 {[%clk 0:00:22.1]} 37... Bxb2
{[%clk 0:00:03.4]} 38. Kd3 {[%clk 0:00:21]} 38... Ba3 {[%clk 0:00:03.1]} 39. c4
{[%clk 0:00:20]} 39... dxc4+ {[%clk 0:00:01.9]} 40. Kxc4 {[%clk 0:00:20.9]}
40... Bd6 {[%clk 0:00:01.2]} 41. Rh1 {[%clk 0:00:20.4]} 1-0